bitfinex-derivatives/quotes_BTCF0:USTF0_20220103
["timestamp","ask_amount","ask_price","bid_price","bid_amount"]
[1641195984574,0.51164731,46976.0,46972.0,0.185]
[1641195984773,0.36064731,46976.0,46970.0,0.02]
[1641195984972,0.50964731,46976.0,46972.0,0.185]
[1641195986174,0.36064731,46976.0,46970.0,0.02]
[1641195986872,0.50564731,46976.0,46970.0,0.207]
[1641195987175,0.145,46976.0,46973.0,0.84296648]
[1641195988173,1.53589924,46978.0,46973.0,0.84296648]
[1641195988372,0.09051503,46975.0,46973.0,0.84296648]
[1641195988573,0.09051503,46975.0,46974.0,0.6034335]
[1641195988872,0.23951503,46975.0,46974.0,0.6034335]
[1641195989275,0.149,46975.0,46974.0,0.6034335]
[1641195989974,0.23951503,46975.0,46974.0,0.6034335]
[1641195990173,0.09051503,46975.0,46974.0,0.6034335]
[1641195990877,0.24151503,46975.0,46974.0,0.7874335]
[1641195991080,0.151,46975.0,46974.0,0.7874335]
[1641195992279,0.09051503,46975.0,46974.0,0.6034335]
[1641195992877,0.179,46975.0,46974.0,0.7844335]
[1641195993980,0.26951503,46975.0,46974.0,0.7844335]
[1641195994380,0.09051503,46975.0,46974.0,0.6034335]
[1641195994980,0.23151503,46975.0,46974.0,0.7544335]
[1641195995583,0.23151503,46975.0,46974.0,0.151]
[1641195996281,0.09051503,46975.0,46973.0,0.6034335]
[1641195996481,0.09051503,46975.0,46974.0,0.6034335]
[1641195996882,0.27551503,46975.0,46974.0,0.7474335]
[1641195997486,0.185,46975.0,46974.0,0.7474335]
[1641195997685,0.185,46975.0,46974.0,0.144]
[1641195998285,0.09051503,46976.0,46973.0,0.6034335]
[1641195998485,0.09051503,46975.0,46973.0,0.6034335]
[1641195999988,0.28651503,46976.0,46973.0,0.6034335]
[1641196000385,0.09051503,46976.0,46973.0,0.6034335]
[1641196000987,0.09051503,46975.0,46973.0,0.7724335]
[1641196002089,0.09051503,46975.0,46973.0,0.169]
[1641196002388,0.09051503,46975.0,46972.0,0.6034335]
[1641196002890,0.26351503,46975.0,46972.0,0.6864335]
[1641196003691,0.09051503,46974.0,46972.0,0.6864335]
[1641196003891,0.09051503,46974.0,46972.0,0.083]
[1641196004291,0.09051503,46974.0,46970.0,0.6234335]
[1641196004893,0.27551503,46974.0,46970.0,0.7854335]
[1641196005093,0.185,46974.0,46970.0,0.7854335]
[1641196005296,0.185,46974.0,46970.0,1.62839998]
[1641196005496,0.185,46974.0,46971.0,0.6034335]
[1641196006293,1.63517821,46977.0,46971.0,0.6034335]
[1641196006494,1.63517821,46977.0,46970.0,0.02]
[1641196006895,1.82417821,46977.0,46970.0,0.02]
[1641196008301,1.44538421,46976.0,46970.0,0.02]
[1641196008898,1.63938421,46976.0,46970.0,0.02]
[1641196009398,0.194,46976.0,46970.0,0.02]
[1641196009599,0.194,46976.0,46970.0,0.6234335]
[1641196010205,1.63517821,46977.0,46970.0,0.6234335]
[1641196010600,0.07056447,46976.0,46970.0,0.6234335]
[1641196011302,0.18,46975.0,46970.0,0.02]
[1641196011501,0.18,46974.0,46970.0,0.02]
[1641196011702,0.18,46975.0,46970.0,0.02]
[1641196012401,1.51594868,46976.0,46970.0,0.02]
[1641196012802,1.44538421,46976.0,46970.0,0.02]
[1641196013004,1.63338421,46976.0,46970.0,0.02]
[1641196014302,1.44538421,46976.0,46970.0,0.02]
[1641196014903,1.63338421,46976.0,46970.0,0.02]
[1641196015507,1.63338421,46976.0,46970.0,0.09351]
[1641196016206,1.44538421,46976.0,46970.0,0.09351]
[1641196016605,1.45517821,46977.0,46971.0,0.36195942]
[1641196017005,0.188,46976.0,46971.0,0.36195942]
[1641196018306,1.45517821,46977.0,46971.0,0.36195942]
[1641196018908,1.64317821,46977.0,46971.0,0.51795942]
[1641196019707,0.197794,46977.0,46973.0,0.36195942]
[1641196020411,0.009794,46977.0,46973.0,0.36195942]
[1641196020610,1.44538421,46976.0,46974.0,0.36195942]
[1641196021009,0.18,46975.0,46974.0,0.36195942]
[1641196021210,0.25775,46975.0,46974.0,0.36195942]
[1641196021414,0.25775,46975.0,46973.0,0.57246988]
[1641196021612,0.25775,46975.0,46972.0,0.57246988]
[1641196022212,0.25775,46975.0,46971.0,0.84296648]
[1641196022614,0.25775,46975.0,46970.0,0.02]
[1641196023030,0.44975,46975.0,46970.0,0.02]
[1641196023328,1.44313586,46972.0,46970.0,0.02]
[1641196023527,1.44313586,46972.0,46971.0,0.001]
[1641196025026,1.63513586,46972.0,46971.0,0.001]
[1641196026928,1.44313586,46972.0,46971.0,0.001]
[1641196027129,1.63613586,46972.0,46971.0,0.001]
[1641196028333,1.44313586,46972.0,46971.0,0.001]
[1641196028638,1.44313586,46973.0,46971.0,0.001]
[1641196028833,1.44313586,46973.0,46972.0,0.001]
[1641196031039,1.63513586,46973.0,46972.0,0.001]
[1641196032438,1.44313586,46973.0,46972.0,0.001]
[1641196033137,1.63513586,46973.0,46972.0,0.001]
[1641196034440,1.44313586,46973.0,46972.0,0.001]
[1641196034840,1.53365512,46973.0,46972.0,0.001]
[1641196035040,1.72465512,46973.0,46972.0,0.001]
[1641196035645,1.63413586,46973.0,46972.0,0.001]
[1641196036244,1.72465512,46973.0,46972.0,0.001]
[1641196036443,1.53365512,46973.0,46972.0,0.001]
[1641196037144,1.72465512,46973.0,46972.0,0.001]
[1641196038344,1.53365512,46973.0,46972.0,0.001]
[1641196039148,1.63513586,46973.0,46972.0,0.001]
[1641196039948,1.72565512,46973.0,46972.0,0.001]
[1641196040348,1.53365512,46973.0,46972.0,0.001]
[1641196041258,1.63113586,46973.0,46972.0,0.001]
[1641196042155,0.27851926,46973.0,46972.0,0.001]
[1641196042358,0.19093595,46972.0,46970.0,0.02]
[1641196042756,0.09051926,46973.0,46970.0,0.02]
[1641196043159,0.189,46972.0,46970.0,0.02]
[1641196044453,0.09051926,46971.0,46970.0,0.02]
[1641196044655,0.09051926,46971.0,46970.0,0.021]
[1641196045053,0.186,46971.0,46970.0,0.021]
[1641196046455,1.44313586,46975.0,46970.0,0.021]
[1641196046656,1.44313586,46975.0,46970.0,0.02]
[1641196047057,1.63413586,46975.0,46970.0,0.02]
[1641196047456,0.191,46975.0,46970.0,0.02]
[1641196048158,0.2274134,46974.0,46970.0,0.02]
[1641196049057,0.4184134,46974.0,46970.0,0.02]
[1641196049256,1.44313586,46972.0,46970.0,0.38207368]
[1641196051159,1.63513586,46972.0,46970.0,0.38207368]
[1641196051760,0.192,46972.0,46971.0,0.36207368]
[1641196052360,1.44313586,46973.0,46971.0,0.36207368]
[1641196053062,1.63313586,46973.0,46971.0,0.36207368]
[1641196054066,1.63313586,46973.0,46970.0,0.02]
[1641196054067,1.44313586,46972.0,46970.0,0.38207368]
[1641196055068,1.63413586,46972.0,46970.0,0.38207368]
[1641196056368,1.44313586,46972.0,46970.0,0.38207368]
[1641196057081,1.63313586,46972.0,46970.0,0.38207368]
[1641196058379,1.44313586,46972.0,46970.0,0.38207368]
[1641196059081,1.63613586,46972.0,46970.0,0.38207368]
[1641196060482,1.44313586,46972.0,46970.0,0.38207368]
[1641196061083,1.63213586,46972.0,46970.0,0.38207368]
[1641196061886,1.70475586,46972.0,46970.0,0.38207368]
[1641196062487,1.51575586,46972.0,46970.0,0.38207368]
[1641196062686,1.51575586,46972.0,46970.0,0.02]
[1641196063087,1.70475586,46972.0,46970.0,0.02]
[1641196064590,1.51575586,46972.0,46970.0,0.02]
[1641196065189,1.70475586,46972.0,46970.0,0.02]
[1641196066292,0.26162,46972.0,46970.0,0.02]
[1641196066491,1.44313586,46973.0,46970.0,0.02]
[1641196067092,1.63313586,46973.0,46970.0,0.02]
[1641196067493,0.42578677,46972.0,46970.0,0.02]
[1641196069295,0.61678677,46972.0,46970.0,0.02]
[1641196069497,0.42580274,46971.0,46970.0,0.02]
[1641196069696,0.42580274,46971.0,46970.0,0.021]
[1641196071201,0.61680274,46971.0,46970.0,0.021]
[1641196072701,0.42580274,46971.0,46970.0,0.021]
[1641196073201,0.61680274,46971.0,46970.0,0.021]
[1641196074603,0.42580274,46971.0,46970.0,0.021]
[1641196075206,0.61680274,46971.0,46970.0,0.021]
[1641196076405,0.42580274,46971.0,46970.0,0.021]
[1641196077206,0.61780274,46971.0,46970.0,0.021]
[1641196078706,0.42580274,46971.0,46970.0,0.021]
[1641196079308,0.61780274,46971.0,46970.0,0.021]
[1641196080612,0.42580274,46971.0,46970.0,0.021]
[1641196081218,0.61780274,46971.0,46970.0,0.021]
[1641196082614,0.42580274,46971.0,46970.0,0.021]
[1641196083315,0.61780274,46971.0,46970.0,0.021]
[1641196084620,0.42580274,46971.0,46970.0,0.021]
[1641196085319,0.61780274,46971.0,46970.0,0.021]
[1641196085819,0.61780274,46971.0,46970.0,0.02]
[1641196086621,2.0609386,46971.0,46970.0,0.02]
[1641196088521,1.8689386,46971.0,46970.0,0.02]
[1641196088921,0.42580274,46971.0,46970.0,0.02]
[1641196089324,0.61780274,46971.0,46970.0,0.02]
[1641196090740,2.0609386,46971.0,46970.0,0.02]
[1641196091142,1.8689386,46971.0,46970.0,0.02]
[1641196091442,2.0609386,46971.0,46970.0,0.02]
[1641196092747,1.8689386,46971.0,46970.0,0.02]
[1641196093343,2.0619386,46971.0,46970.0,0.02]
[1641196094644,1.8689386,46971.0,46970.0,0.02]
[1641196095046,0.42580274,46971.0,46970.0,0.02]
[1641196095245,0.61980274,46971.0,46970.0,0.02]
[1641196096547,0.42580274,46971.0,46970.0,0.02]
[1641196097248,0.61980274,46971.0,46970.0,0.02]
[1641196098752,0.42580274,46971.0,46970.0,0.02]
[1641196099151,1.8689386,46971.0,46970.0,0.02]
[1641196099352,2.0589386,46971.0,46970.0,0.02]
[1641196101152,1.8689386,46971.0,46970.0,0.02]
[1641196101353,2.0599386,46971.0,46970.0,0.02]
[1641196102554,0.61680274,46971.0,46970.0,0.02]
[1641196102755,0.42580274,46971.0,46970.0,0.02]
[1641196103255,0.61980274,46971.0,46970.0,0.02]
[1641196104562,0.42580274,46971.0,46970.0,0.02]
[1641196105359,0.61980274,46971.0,46970.0,0.02]
[1641196106658,0.42580274,46971.0,46970.0,0.02]
[1641196107259,0.61980274,46971.0,46970.0,0.02]
[1641196108559,0.42580274,46971.0,46970.0,0.02]
[1641196108761,1.8689386,46971.0,46970.0,0.02]
[1641196109363,0.61280274,46971.0,46970.0,0.02]
[1641196110563,0.42580274,46971.0,46970.0,0.02]
[1641196110763,1.8689386,46971.0,46970.0,0.02]
[1641196111262,2.0609386,46971.0,46970.0,0.02]
[1641196112563,1.8689386,46971.0,46970.0,0.02]
[1641196113365,2.0559386,46971.0,46970.0,0.02]
[1641196114566,1.8689386,46971.0,46970.0,0.02]
[1641196115370,2.0549386,46971.0,46970.0,0.02]
[1641196116773,1.8689386,46971.0,46970.0,0.02]
[1641196117272,2.0549386,46971.0,46970.0,0.02]
[1641196118571,1.8689386,46971.0,46970.0,0.02]
[1641196119374,2.0569386,46971.0,46970.0,0.02]
[1641196120273,2.14745444,46971.0,46970.0,0.02]
[1641196120573,1.95945444,46971.0,46970.0,0.02]
[1641196121276,2.14845444,46971.0,46970.0,0.02]
[1641196122078,1.7226517,46971.0,46970.0,0.02]
[1641196122679,1.5336517,46971.0,46970.0,0.02]
[1641196123080,0.20129065,46990.0,46970.0,0.22229065]
[1641196123279,0.44691656,46990.0,46976.0,0.18]
[1641196123480,0.9107,46988.0,46976.0,0.18]
[1641196123881,0.9107,46988.0,46978.0,2.56023662]
[1641196124094,1.0907,46988.0,46978.0,2.63818662]
[1641196124498,0.9107,46988.0,46978.0,2.63818662]
[1641196125297,0.33233567,46986.0,46978.0,3.0002603]
[1641196125496,0.33233567,46986.0,46978.0,0.44002368]
[1641196125997,0.33233567,46986.0,46978.0,0.07795]
[1641196126595,0.14033567,46986.0,46978.0,0.07795]
[1641196127396,0.33333567,46986.0,46978.0,0.07795]
[1641196128198,1.44229134,46979.0,46978.0,0.07795]
[1641196128400,1.44229134,46979.0,46977.0,0.50240935]
[1641196129302,1.61329134,46979.0,46977.0,0.50240935]
[1641196130001,0.171,46979.0,46977.0,0.50240935]
[1641196130200,0.171,46979.0,46977.0,0.14033567]
[1641196130607,1.44229134,46985.0,46977.0,0.14033567]
[1641196131201,1.58262701,46986.0,46977.0,0.14033567]
[1641196131401,0.158,46985.0,46977.0,0.14033567]
[1641196132703,1.58262701,46986.0,46977.0,0.14033567]
[1641196133303,1.75162701,46986.0,46977.0,0.14033567]
[1641196134302,1.61129134,46986.0,46975.0,0.18]
[1641196134504,0.84033348,46978.0,46975.0,0.18]
[1641196134704,0.84033348,46978.0,46977.0,0.14033567]
[1641196138908,0.84033348,46978.0,46977.0,0.16162246]
[1641196139610,0.84033348,46980.0,46977.0,0.16162246]
[1641196139808,0.84033348,46980.0,46979.0,0.18]
[1641196140112,0.84033348,46980.0,46977.0,0.16162246]
[1641196140309,0.84033348,46980.0,46979.0,0.18]
[1641196140807,0.84033348,46980.0,46977.0,0.16162246]
[1641196141009,0.84033348,46981.0,46977.0,0.16162246]
[1641196141210,0.84033348,46981.0,46979.0,0.18]
[1641196141412,0.84033348,46981.0,46980.0,0.18]
[1641196141909,0.84033348,46981.0,46977.0,0.16162246]
[1641196142310,0.84033348,46981.0,46980.0,0.18]
[1641196142509,0.84033348,46981.0,46980.0,0.12]
[1641196142712,0.84033348,46981.0,46980.0,0.18]
[1641196143309,0.84033348,46981.0,46977.0,0.16162246]
[1641196143510,0.84033348,46981.0,46980.0,0.18]
[1641196143710,0.84033348,46981.0,46978.0,0.18]
[1641196143911,0.84033348,46981.0,46977.0,0.16162246]
[1641196144210,0.84033348,46981.0,46980.0,0.20128521]
[1641196145214,0.84033348,46983.0,46980.0,0.20128521]
[1641196145412,0.84033348,46983.0,46980.0,0.39028521]
[1641196146812,0.84033348,46983.0,46980.0,0.20128521]
[1641196147012,0.84033348,46983.0,46980.0,0.02128521]
[1641196147213,0.84033348,46983.0,46982.0,0.18]
[1641196147415,0.84033348,46983.0,46980.0,0.21228521]
[1641196148615,0.84033348,46982.0,46980.0,0.21228521]
[1641196148915,0.84033348,46982.0,46980.0,0.20128521]
[1641196149518,0.84033348,46982.0,46980.0,0.39028521]
[1641196149919,0.84033348,46982.0,46980.0,0.21028521]
[1641196150723,0.84033348,46982.0,46980.0,0.02128521]
[1641196151123,0.93589348,46982.0,46980.0,0.02128521]
[1641196151521,0.93589348,46982.0,46980.0,0.21128521]
[1641196151823,0.09556,46982.0,46980.0,0.19]
[1641196153021,0.84033348,46981.0,46980.0,0.19]
[1641196153421,0.84033348,46981.0,46980.0,0.366]
[1641196153723,0.27656,46982.0,46980.0,0.366]
[1641196154821,0.09556,46982.0,46977.0,0.14033567]
[1641196155021,0.09556,46982.0,46978.0,0.36207368]
[1641196155421,0.23656,46982.0,46978.0,0.36207368]
[1641196156622,0.23656,46982.0,46979.0,0.36207368]
[1641196156821,0.09556,46982.0,46979.0,0.36207368]
[1641196157021,1.44229134,46985.0,46979.0,0.36207368]
[1641196157421,0.144,46982.0,46979.0,0.54407368]
[1641196158123,0.144,46982.0,46979.0,0.72407368]
[1641196158326,0.144,46982.0,46979.0,0.74536099]
[1641196158624,0.144,46982.0,46979.0,0.56536099]
[1641196159325,1.44229134,46985.0,46979.0,0.38336099]
[1641196159526,0.105,46982.0,46979.0,0.56636099]
[1641196159726,0.105,46982.0,46980.0,0.36207368]
[1641196160430,0.105,46982.0,46980.0,0.54207368]
[1641196160830,1.44229134,46986.0,46980.0,0.54207368]
[1641196161027,1.44229134,46986.0,46980.0,0.36207368]
[1641196161427,1.61429134,46986.0,46980.0,0.53207368]
[1641196162527,1.61429134,46986.0,46980.0,0.71207368]
[1641196162727,1.61429134,46986.0,46980.0,0.53207368]
[1641196162927,1.44229134,46986.0,46980.0,0.36207368]
[1641196163630,1.61429134,46986.0,46980.0,0.53207368]
[1641196164731,1.44229134,46986.0,46980.0,0.36207368]
[1641196165645,1.61629134,46986.0,46980.0,0.53307368]
[1641196166846,1.44229134,46986.0,46980.0,0.36207368]
[1641196167548,1.61429134,46986.0,46980.0,0.53207368]
[1641196167949,1.61429134,46986.0,46980.0,0.71207368]
[1641196168750,1.44229134,46986.0,46980.0,0.54207368]
[1641196169548,1.60529134,46986.0,46980.0,0.70307368]
[1641196171453,1.59029134,46986.0,46980.0,0.71207368]
[1641196171654,1.59029134,46986.0,46980.0,0.53207368]
[1641196172654,1.59029134,46986.0,46980.0,0.71207368]
[1641196172853,1.59242101,46987.0,46980.0,0.18]
[1641196173454,1.75042101,46987.0,46980.0,0.336]
[1641196174854,1.59242101,46987.0,46980.0,0.18]
[1641196175258,1.44229134,46986.0,46980.0,0.54207368]
[1641196175460,1.44229134,46986.0,46980.0,0.70007368]
[1641196176259,1.44229134,46986.0,46981.0,0.36207368]
[1641196177060,1.59242101,46987.0,46981.0,0.36207368]
[1641196177459,0.186,46986.0,46981.0,0.54507368]
[1641196178060,0.186,46986.0,46982.0,0.36207368]
[1641196178762,1.59242101,46987.0,46982.0,0.36207368]
[1641196179162,1.44229134,46986.0,46981.0,0.36207368]
[1641196179362,1.44229134,46986.0,46982.0,0.139]
[1641196180763,1.44229134,46986.0,46981.0,0.36207368]
[1641196181465,1.62729134,46986.0,46981.0,0.54307368]
[1641196181665,1.62729134,46986.0,46982.0,0.18]
[1641196181864,1.62729134,46986.0,46982.0,0.12]
[1641196182065,1.62729134,46986.0,46981.0,0.54307368]
[1641196182866,1.44229134,46986.0,46981.0,0.36207368]
[1641196183466,1.62829134,46986.0,46981.0,0.54407368]
[1641196183767,0.186,46986.0,46982.0,0.36207368]
[1641196184767,1.59242101,46987.0,46982.0,0.36207368]
[1641196185466,1.76942101,46987.0,46982.0,0.53207368]
[1641196186672,1.76942101,46987.0,46982.0,0.36207368]
[1641196186869,1.59242101,46987.0,46982.0,0.36207368]
[1641196187370,1.74042101,46987.0,46982.0,0.50107368]
[1641196187770,1.74042101,46987.0,46982.0,0.68107368]
[1641196187971,1.44229134,46986.0,46982.0,0.319]
[1641196188770,1.59242101,46987.0,46982.0,0.54207368]
[1641196188971,1.59242101,46987.0,46982.0,0.36207368]
[1641196189371,1.76262701,46987.0,46982.0,0.53607368]
[1641196190771,1.58262701,46987.0,46982.0,0.36207368]
[1641196191372,1.76462701,46987.0,46982.0,0.53907368]
[1641196192774,1.76462701,46987.0,46982.0,0.36207368]
[1641196192973,1.58262701,46987.0,46982.0,0.36207368]
[1641196193373,1.76462701,46987.0,46982.0,0.54007368]
[1641196193582,1.44229134,46986.0,46982.0,0.178]
[1641196195575,1.62729134,46986.0,46982.0,0.181]
[1641196196177,0.18,46984.0,46982.0,0.181]
[1641196196378,0.26596,46984.0,46982.0,0.181]
[1641196196779,0.08394554,46982.0,46981.0,0.36207368]
[1641196196981,0.26596,46984.0,46981.0,0.36207368]
[1641196197180,0.14033567,46982.0,46981.0,0.36207368]
[1641196197384,0.32733567,46982.0,46981.0,0.36207368]
[1641196197580,0.32733567,46982.0,46979.0,0.60345484]
[1641196197782,0.18,46981.0,46973.0,0.36207368]
[1641196198184,0.24992886,46981.0,46973.0,0.36207368]
[1641196198982,1.43584271,46978.0,46973.0,0.36207368]
[1641196199283,0.14033567,46977.0,46972.0,0.36207368]
[1641196200286,0.14033567,46977.0,46971.0,0.60345484]
[1641196200287,1.57617838,46977.0,46973.0,0.36207368]
[1641196200485,0.09376174,46976.0,46973.0,0.36207368]
[1641196201384,0.28176174,46976.0,46973.0,0.36207368]
[1641196202285,1.62384271,46976.0,46972.0,0.36207368]
[1641196202683,1.43584271,46976.0,46972.0,0.36207368]
[1641196203184,1.57617838,46977.0,46972.0,0.36207368]
[1641196203385,0.188,46976.0,46972.0,0.36207368]
[1641196204185,1.62384271,46976.0,46972.0,0.36207368]
[1641196204986,1.43584271,46976.0,46972.0,0.36207368]
[1641196205386,1.62384271,46976.0,46972.0,0.36207368]
[1641196206688,1.43584271,46976.0,46972.0,0.36207368]
[1641196207389,1.62584271,46976.0,46972.0,0.36207368]
[1641196208287,0.19,46976.0,46973.0,0.36207368]
[1641196208786,1.57617838,46977.0,46973.0,0.36207368]
[1641196209388,1.76517838,46977.0,46973.0,0.36207368]
[1641196210789,1.57617838,46977.0,46973.0,0.36207368]
[1641196211490,1.76617838,46977.0,46973.0,0.36207368]
[1641196212690,1.57617838,46977.0,46973.0,0.36207368]
[1641196213391,1.76617838,46977.0,46973.0,0.36207368]
[1641196214804,1.57617838,46977.0,46973.0,0.36207368]
[1641196215407,1.76617838,46977.0,46973.0,0.36207368]
[1641196216907,1.57617838,46977.0,46973.0,0.36207368]
[1641196217407,1.76617838,46977.0,46973.0,0.36207368]
[1641196218608,0.83914018,46974.0,46970.0,0.02]
[1641196219410,1.03114018,46974.0,46970.0,0.02]
[1641196220719,0.83914018,46974.0,46970.0,0.02]
[1641196221514,0.19,46974.0,46970.0,0.02]
[1641196222719,0.97947585,46977.0,46971.0,0.20129117]
[1641196223419,1.16947585,46977.0,46971.0,0.20129117]
[1641196224218,1.16947585,46977.0,46974.0,0.18]
[1641196224418,1.16947585,46977.0,46975.0,0.0212891]
[1641196224819,0.14033567,46977.0,46975.0,0.0212891]
[1641196225527,0.33033567,46977.0,46975.0,0.0212891]
[1641196226723,0.14033567,46977.0,46975.0,0.0212891]
[1641196227522,0.33033567,46977.0,46975.0,0.0212891]
[1641196227923,0.19,46977.0,46975.0,0.0212891]
[1641196228723,0.83914018,46978.0,46975.0,0.0212891]
[1641196229125,0.83914018,46979.0,46975.0,0.0212891]
[1641196229525,0.187,46978.0,46975.0,0.0212891]
[1641196230928,0.83914018,46979.0,46975.0,0.0212891]
[1641196231527,1.02714018,46979.0,46975.0,0.0212891]
[1641196232727,0.83914018,46979.0,46975.0,0.0212891]
[1641196233529,1.03314018,46979.0,46975.0,0.0212891]
[1641196234730,0.83914018,46979.0,46975.0,0.0212891]
[1641196235438,1.03314018,46979.0,46975.0,0.0212891]
[1641196236840,0.83914018,46979.0,46975.0,0.0212891]
[1641196237435,1.03314018,46979.0,46975.0,0.0212891]
[1641196238640,0.009794,46983.0,46975.0,0.0212891]
[1641196238839,1.43584271,46981.0,46975.0,0.0212891]
[1641196239040,1.43584271,46981.0,46977.0,0.60345484]
[1641196239445,1.63084271,46981.0,46977.0,0.60345484]
[1641196240041,0.195,46981.0,46979.0,0.36202199]
[1641196241539,0.387,46981.0,46979.0,0.36202199]
[1641196241741,0.387,46981.0,46975.0,0.38331109]
[1641196242543,0.83772188,46977.0,46975.0,0.38331109]
[1641196243545,1.01472188,46977.0,46975.0,0.38331109]
[1641196244846,0.83772188,46977.0,46975.0,0.38331109]
[1641196245452,1.01472188,46977.0,46975.0,0.38331109]
[1641196246854,0.83772188,46977.0,46975.0,0.38331109]
[1641196247451,1.01472188,46977.0,46975.0,0.38331109]
[1641196248360,1.43584271,46986.0,46976.0,0.02128705]
[1641196248567,1.43584271,46986.0,46979.0,0.18]
[1641196249361,1.43584271,46989.0,46985.0,0.14033567]
[1641196249561,0.169,46986.0,46985.0,0.22486567]
[1641196250863,1.43584271,46989.0,46985.0,0.22486567]
[1641196251065,1.43584271,46992.0,46985.0,0.22486567]
[1641196251466,0.167,46989.0,46985.0,0.40886567]
[1641196251865,1.02508007,47006.0,46988.0,0.001]
[1641196252064,0.9404,47006.0,46990.0,0.18]
[1641196252265,1.43803879,46994.0,46990.0,0.18]
[1641196252765,1.43803879,46994.0,46992.0,0.02128157]
[1641196253265,0.14033567,46997.0,46992.0,0.02128157]
[1641196253565,0.9404,47006.0,46992.0,0.35161724]
[1641196253764,0.9404,47006.0,46992.0,0.33033567]
[1641196253967,0.9404,47006.0,46992.0,0.35161724]
[1641196255369,0.9404,47006.0,46992.0,0.16161724]
[1641196255569,0.9404,47006.0,46992.0,0.35161724]
[1641196256769,0.9404,47006.0,46992.0,0.16161724]
[1641196257171,1.44100648,47000.0,46992.0,0.16161724]
[1641196257477,1.44100648,47000.0,46992.0,0.35161724]
[1641196258770,1.44100648,47000.0,46992.0,0.16161724]
[1641196259572,1.44100648,47000.0,46992.0,0.35661724]
[1641196260774,1.44100648,47000.0,46992.0,0.16161724]
[1641196261473,1.44100648,47000.0,46992.0,0.35461724]
[1641196262472,0.189794,47004.0,46992.0,0.35461724]
[1641196262473,1.44100648,46995.0,46992.0,0.35461724]
[1641196262673,1.44100648,46995.0,46993.0,0.36202199]
[1641196263174,1.44100648,46996.0,46994.0,0.36202199]
[1641196264776,1.44100648,46997.0,46994.0,0.36202199]
[1641196265377,1.44100648,46997.0,46996.0,0.02127991]
[1641196265677,1.44100648,46997.0,46996.0,0.08806991]
[1641196266477,1.44100648,46998.0,46996.0,0.4500919]
[1641196267477,0.14033567,47005.0,46996.0,0.6430919]
[1641196267680,0.84021175,47002.0,46998.0,0.14033567]
[1641196268480,0.84021175,47004.0,46998.0,0.14033567]
[1641196269579,0.84021175,47004.0,46998.0,0.33333567]
[1641196270080,0.98054742,47005.0,46998.0,0.33333567]
[1641196270879,0.98054742,47005.0,46998.0,0.14033567]
[1641196271080,0.14033567,47005.0,46998.0,0.14033567]
[1641196271479,0.14033567,47005.0,46998.0,0.33033567]
[1641196271882,0.14033567,47005.0,46998.0,0.51033567]
[1641196273483,0.14033567,47005.0,46998.0,0.51333567]
[1641196274985,0.14033567,47005.0,46998.0,0.32033567]
[1641196275186,0.14033567,47005.0,46998.0,0.14033567]
[1641196275386,0.14033567,47005.0,46998.0,0.32033567]
[1641196275586,0.14033567,47005.0,46998.0,0.51133567]
[1641196276794,0.14033567,47005.0,46998.0,0.32033567]
[1641196277497,0.14033567,47005.0,46998.0,0.51133567]
[1641196278796,0.14033567,47005.0,46998.0,0.32033567]
[1641196279502,0.14033567,47005.0,46998.0,0.51133567]
[1641196280899,0.14033567,47005.0,46998.0,0.14033567]
[1641196281101,0.14033567,47005.0,46998.0,0.32033567]
[1641196281618,0.14033567,47005.0,46998.0,0.33133567]
[1641196281821,0.14033567,47005.0,46998.0,0.51133567]
[1641196282816,0.14033567,47005.0,46999.0,0.42554025]
[1641196283617,0.14033567,47005.0,46999.0,0.61654025]
[1641196284718,0.14033567,47005.0,46999.0,0.42554025]
[1641196285517,0.14033567,47005.0,46999.0,0.61854025]
[1641196285717,0.9722,47010.0,46999.0,0.61854025]
[1641196285919,1.44100648,47011.0,47004.0,0.14033567]
[1641196286320,1.44100648,47011.0,47007.0,0.02127487]
[1641196286521,1.44100648,47011.0,47010.0,0.18]
[1641196286819,1.01558545,47011.0,47010.0,0.20126985]
[1641196287021,1.4459057,47013.0,47010.0,0.20126985]
[1641196287221,1.4459057,47013.0,47012.0,0.06]
[1641196287419,1.3859057,47013.0,47012.0,0.18]
[1641196287619,0.8117688,47013.0,47012.0,1.617902]
[1641196287821,0.8117688,47013.0,47012.0,1.75823767]
[1641196288021,0.14033567,47024.0,47012.0,1.75823767]
[1641196288223,0.14033567,47024.0,47012.0,1.75723767]
[1641196288623,0.14033567,47024.0,47012.0,2.36069251]
[1641196288826,0.14033567,47024.0,47012.0,2.18069251]
[1641196289023,0.9915,47035.0,47023.0,0.02126611]
[1641196289223,1.09843567,47036.0,47028.0,0.18]
[1641196289627,0.14033567,47036.0,47028.0,0.18]
[1641196289827,0.14033567,47036.0,47028.0,0.14033567]
[1641196291025,0.14033567,47036.0,47029.0,0.09692607]
[1641196291524,0.14033567,47036.0,47029.0,0.29292607]
[1641196292226,0.14033567,47036.0,47031.0,2.28132705]
[1641196292425,0.14033567,47036.0,47032.0,1.116]
[1641196292632,0.14033567,47043.0,47035.0,0.02126162]
[1641196292924,0.14033567,47043.0,47035.0,0.08540162]
[1641196293326,1.44507172,47041.0,47035.0,0.08540162]
[1641196293523,1.44507172,47041.0,47035.0,0.28040162]
[1641196293927,1.44507172,47041.0,47038.0,0.14033567]
[1641196294126,1.44507172,47041.0,47038.0,1.25633567]
[1641196294627,1.44507172,47041.0,47038.0,0.14033567]
[1641196295527,0.02,47045.0,47038.0,0.33633567]
[1641196295528,1.44507172,47044.0,47038.0,0.33633567]
[1641196296128,0.02,47045.0,47040.0,0.02125964]
[1641196296530,0.02,47045.0,47044.0,0.0212546]
[1641196297530,0.02,47045.0,47044.0,0.2172546]
[1641196299031,0.02,47045.0,47044.0,0.0212546]
[1641196299432,0.02,47045.0,47044.0,0.3812866]
[1641196299632,0.02,47045.0,47044.0,0.5772866]
[1641196299934,0.02,47045.0,47044.0,0.71762227]
[1641196300932,0.02,47045.0,47044.0,0.52162227]
[1641196301336,0.02,47045.0,47044.0,0.16159027]
[1641196301534,0.02,47045.0,47044.0,0.35659027]
[1641196302935,0.02,47045.0,47044.0,0.16159027]
[1641196303635,0.02,47045.0,47044.0,0.35759027]
[1641196305039,0.02,47045.0,47044.0,0.16159027]
[1641196305637,1.11283567,47058.0,47044.0,0.53958739]